fUSD/lending_fUSD_20241009
["ID","MTS","AMOUNT","RATE_DAILY","PERIOD"]
[340093863,1728508259063,-743.68,0.00046575,120]
[340093864,1728508259077,-500.0,0.00046575,120]
[340093865,1728508259092,-500.0,0.00046575,120]
[340093866,1728508259106,-500.0,0.00046575,120]
[340093867,1728508259119,-527.56,0.00046575,120]
[340093868,1728508259133,-908.41,0.00046575,120]
[340093869,1728508259147,-500.0,0.00046575,120]
[340093870,1728508259161,-500.0,0.00046575,120]
[340093871,1728508259279,-500.0,0.00046575,120]
[340093872,1728508259292,-1090.38,0.00046575,120]
[340093873,1728508259305,-500.0,0.00046575,120]
[340093874,1728508259314,-777.71,0.00046575,120]
[340093875,1728508259323,-500.0,0.00046575,120]
[340093876,1728508259334,-1040.09,0.00046575,120]
[340093877,1728508259344,-500.0,0.00046575,120]
[340093878,1728508259355,-500.0,0.00046575,120]
[340093879,1728508259366,-500.0,0.00046575,120]
[340093880,1728508259377,-500.0,0.00046575,120]
[340093881,1728508259386,-500.0,0.00046575,120]
[340093882,1728508259396,-2019.88,0.00046575,120]
[340093883,1728508259405,-603.81,0.00046575,120]
[340093884,1728508259414,-500.0,0.00046575,120]
[340093885,1728508259423,-500.0,0.00046575,120]
[340093886,1728508259432,-840.33,0.00046575,120]
[340093887,1728508259441,-500.0,0.00046575,120]
[340093888,1728508259450,-2062.69,0.00046575,120]
[340093889,1728508259459,-586.28094623,0.00046575,120]
[340093890,1728508259468,-431.57,0.00046575,120]
[340093891,1728508259478,-500.0,0.00046575,120]
[340093892,1728508259487,-500.0,0.00046575,120]
[340093893,1728508259496,-1490.13,0.00046575,120]
[340093894,1728508259505,-648.04,0.00046575,120]
[340093895,1728508259515,-500.0,0.00046575,120]
[340093896,1728508259524,-1821.04,0.00046575,120]
[340093897,1728508259533,-500.0,0.00046575,120]
[340093898,1728508259542,-500.0,0.00046575,120]
[340093899,1728508259551,-500.0,0.00046575,120]
[340093900,1728508259560,-500.0,0.00046575,120]
[340093901,1728508259570,-500.0,0.00046575,120]
[340093902,1728508259579,-500.0,0.00046575,120]
[340093903,1728508259588,-500.0,0.00046575,120]
[340093904,1728508259597,-1109.87,0.00046575,120]
[340093905,1728508259606,-500.0,0.00046575,120]
[340093906,1728508259615,-500.0,0.00046575,120]
[340093907,1728508259624,-500.0,0.00046575,120]
[340093908,1728508259633,-500.0,0.00046575,120]
[340093909,1728508259642,-722.12,0.00046575,120]
[340093910,1728508259651,-250.0,0.00046575,120]
[340093911,1728508259661,-814.34,0.00046575,120]
[340093912,1728508259670,-1068.19,0.00046575,120]
[340093913,1728508259679,-500.0,0.00046575,120]
[340093914,1728508259688,-700.0,0.00046575,120]
[340093915,1728508259697,-500.0,0.00046575,120]
[340093916,1728508259705,-984.53,0.00046575,120]
[340093917,1728508259715,-538.64,0.00046575,120]
[340093918,1728508259724,-500.0,0.00046575,120]
[340093919,1728508259733,-502.70724627,0.00046575,30]
[340093920,1728508259742,-500.0,0.00046575,120]
[340093921,1728508259752,-500.0,0.00046575,120]
[340093922,1728508259761,-500.0,0.00046575,120]
[340093923,1728508259770,-500.0,0.00046575,120]
[340093924,1728508259780,-500.0,0.00046575,120]
[340093925,1728508259788,-1109.61,0.00046575,120]
[340093926,1728508259798,-567.44,0.00046575,120]
[340093927,1728508259807,-954.46,0.00046575,120]
[340093928,1728508259816,-4510.44,0.00046575,120]
[340093929,1728508259825,-500.0,0.00046575,120]
[340093930,1728508259834,-500.0,0.00046575,120]
[340093931,1728508259843,-500.0,0.00046575,120]
[340093932,1728508259853,-500.0,0.00046575,120]
[340093933,1728508259862,-500.0,0.00046575,120]
[340093934,1728508259871,-500.0,0.00046575,120]
[340093935,1728508259880,-500.0,0.00046575,120]
[340093936,1728508259891,-585.55102334,0.00046575,120]
[340093937,1728508259900,-100000.0,0.00046575,2]
[340093938,1728508259909,-500.0,0.00046575,120]
[340093939,1728508259918,-1404.225,0.00046575,14]
[340093940,1728508259927,-525.38,0.00046575,120]
[340093941,1728508259937,-501.67,0.00046575,120]
[340093942,1728508259946,-400.51197154,0.00046575,120]
[340093943,1728508259956,-500.0,0.00046575,120]
[340093944,1728508259966,-781.88,0.00046575,120]
[340093945,1728508259976,-500.0,0.00046575,120]
[340093946,1728508259987,-3806.99,0.00046575,120]
[340093947,1728508259996,-500.0,0.00046575,120]
[340093948,1728508260006,-500.0,0.00046575,120]
[340093949,1728508260016,-157.2,0.00046575,120]
[340093950,1728508260026,-500.0,0.00046575,2]
[340093951,1728508260036,-500.0,0.00046575,120]
[340093952,1728508260046,-500.0,0.00046575,120]
[340093953,1728508260055,-327.781012,0.00046575,2]
[340093954,1728508260064,-500.0,0.00046575,120]
[340093955,1728508260074,-500.0,0.00046575,120]
[340093956,1728508260083,-500.0,0.00046575,120]
[340093957,1728508260093,-889.92,0.00046575,120]
[340093958,1728508260102,-492.99,0.00046575,120]
[340093959,1728508260112,-500.0,0.00046575,120]
[340093960,1728508260121,-500.0,0.00046575,120]
[340093961,1728508260131,-635.11948453,0.00046575,120]
[340093962,1728508260141,-500.0,0.00046575,120]
[340093963,1728508260150,-500.0,0.00046575,120]
[340093964,1728508260159,-500.0,0.00046575,120]
[340093965,1728508260168,-500.0,0.00046575,120]
[340093966,1728508260177,-500.0,0.00046575,120]
[340093967,1728508260187,-500.0,0.00046575,120]
[340093968,1728508260196,-1519.78,0.00046575,120]
[340093969,1728508260205,-500.0,0.00046608,120]
[340093970,1728508260214,-150.0,0.00046631,30]
[340093971,1728508260223,-150.0,0.00046709,30]
[340093972,1728508260232,-150.0,0.00046709,30]
[340093973,1728508260242,-151.101001,0.00046748,120]
[340093974,1728508260252,-2110.0,0.000468,2]
[340093975,1728508260261,-500.0,0.00046849,120]
[340093976,1728508260270,-546.81,0.00046849,120]
[340093977,1728508260279,-471.68,0.00046849,120]
[340093978,1728508260288,-500.72,0.00046849,120]
[340093979,1728508260297,-500.0,0.00046849,120]
[340093980,1728508260309,-849.72,0.00046849,120]
[340093981,1728508260318,-500.0,0.00046849,120]
[340093982,1728508260327,-232.79165278,0.00046849,120]
[340093983,1728508260336,-500.0,0.00046849,120]
[340093984,1728508260346,-500.0,0.00046849,120]
[340093985,1728508260356,-500.0,0.00046849,120]
[340093986,1728508260365,-663.57,0.00046849,120]
[340093987,1728508260375,-814.86,0.00046849,120]
[340093988,1728508260385,-500.0,0.00046849,2]
[340093989,1728508260393,-500.0,0.00046849,120]
[340093990,1728508260402,-500.0,0.00046849,120]
[340093991,1728508260412,-708.41,0.00046849,120]
[340093992,1728508260421,-641.03710887,0.00046849,120]
[340093993,1728508260431,-500.0,0.00046849,120]
[340093994,1728508260441,-500.0,0.00046849,120]
[340093995,1728508260451,-500.0,0.00046849,120]
[340093996,1728508260460,-500.0,0.00046849,120]
[340093997,1728508260469,-500.0,0.00046849,120]
[340093998,1728508260479,-500.0,0.00046849,120]
[340093999,1728508260487,-500.0,0.00046849,120]
[340094000,1728508260497,-500.0,0.00046849,5]
[340094001,1728508260508,-304.62693693,0.00046849,120]
[340094002,1728508260517,-500.0,0.00046849,120]
[340094003,1728508260526,-506.76518509,0.00046849,30]
[340094004,1728508260535,-502.30266527,0.00046849,2]
[340094005,1728508260543,-151.0,0.00046849,14]
[340094006,1728508260553,-500.0,0.00046849,120]
[340094007,1728508260562,-151.0,0.00046849,14]
[340094008,1728508260571,-500.0,0.00046849,120]
[340094009,1728508260581,-212.62,0.00046849,120]
[340094010,1728508260590,-500.0,0.00046849,120]
[340094011,1728508260599,-735.91,0.00046849,120]
[340094012,1728508260607,-571.67,0.00046849,120]
[340094013,1728508260617,-493.75054385,0.00046849,120]
[340094014,1728508260627,-500.0,0.00046849,120]
[340094015,1728508260637,-552.54,0.00046849,120]
[340094016,1728508260648,-500.0,0.00046849,120]
[340094017,1728508260656,-500.0,0.00046849,120]
[340094018,1728508260665,-500.0,0.00046849,7]
[340094019,1728508260674,-500.0,0.00046849,120]
[340094020,1728508260683,-500.0,0.00046849,120]
[340094021,1728508260692,-500.0,0.00046849,120]
[340094022,1728508260701,-500.0,0.00046849,120]
[340094023,1728508260709,-500.0,0.00046849,120]
[340094024,1728508260719,-500.0,0.00046849,120]
[340094025,1728508260728,-500.0,0.00046849,120]
[340094026,1728508260737,-577.12,0.00046849,120]
[340094027,1728508260746,-980.22,0.00046849,120]
[340094028,1728508260756,-624.1,0.00046849,120]
[340094029,1728508260765,-500.0,0.00046849,120]
[340094030,1728508260775,-500.0,0.00046849,120]
[340094031,1728508260784,-500.0,0.00046849,120]
[340094032,1728508260794,-20000.0,0.00046849,2]
[340094033,1728508260803,-1049.76,0.00046849,14]
[340094034,1728508260814,-572.2,0.00046849,120]
[340094035,1728508260906,-500.0,0.00046849,120]
[340094036,1728508260916,-500.0,0.00046849,120]
[340094037,1728508260926,-500.0,0.00046849,120]
[340094038,1728508260936,-500.0,0.00046849,120]
[340094039,1728508260945,-500.0,0.00046849,120]
[340094040,1728508260954,-500.0,0.00046849,120]
[340094041,1728508260964,-500.0,0.00046849,120]
[340094042,1728508260973,-501.42308716,0.00046849,120]
[340094043,1728508260982,-500.0,0.00046849,120]
[340094044,1728508260992,-500.0,0.00046849,120]
[340094045,1728508261003,-500.0,0.00046849,120]
[340094046,1728508261012,-500.0,0.00046849,120]
[340094047,1728508261020,-500.0,0.00046849,120]
[340094048,1728508261029,-555.95,0.00046849,120]
[340094049,1728508261038,-678.96,0.00046849,120]
[340094050,1728508261047,-1330.29,0.00046849,120]
[340094051,1728508261056,-500.0,0.00046849,120]
[340094052,1728508261065,-500.0,0.00046849,120]
[340094053,1728508261075,-500.0,0.00046849,120]
[340094054,1728508261085,-500.0,0.00046849,120]
[340094055,1728508261094,-500.0,0.00046849,120]
[340094056,1728508261103,-500.0,0.00046849,120]
[340094057,1728508261112,-500.0,0.00046849,120]
[340094058,1728508261121,-500.0,0.00046849,120]
[340094059,1728508261130,-500.0,0.00046849,120]
[340094060,1728508261139,-500.0,0.00046849,120]
[340094061,1728508261149,-500.0,0.00046849,120]
[340094062,1728508261158,-500.0,0.00046849,120]
[340094063,1728508261167,-500.0,0.00046849,120]
[340094064,1728508261177,-500.0,0.00046849,120]
[340094065,1728508261186,-500.0,0.00046849,120]
[340094066,1728508261195,-500.0,0.00046849,120]
[340094067,1728508261205,-500.0,0.00046849,120]
[340094068,1728508261214,-500.0,0.00046849,120]
[340094069,1728508261223,-500.0,0.00046849,120]
[340094070,1728508261232,-1042.24,0.00046849,120]
[340094071,1728508261241,-500.0,0.00046849,120]
[340094072,1728508261250,-904.97,0.00046849,60]
[340094073,1728508261264,-1889.78,0.00046849,120]
[340094074,1728508261272,-500.0,0.00046849,120]
[340094075,1728508261281,-900.15,0.00046849,120]
[340094076,1728508261290,-630.0,0.00046849,120]
[340094077,1728508261300,-500.0,0.00046849,120]
[340094078,1728508261311,-500.0,0.00046849,120]
[340094079,1728508261320,-500.0,0.00046849,120]
[340094080,1728508261329,-500.0,0.00046849,120]
[340094081,1728508261338,-514.25,0.00046849,120]
[340094082,1728508261347,-500.0,0.00046849,120]
[340094083,1728508261356,-276.82,0.00046849,120]
[340094084,1728508261365,-888.0,0.00046849,120]
[340094085,1728508261374,-1053.89,0.00046849,120]
[340094086,1728508261385,-500.0,0.00046849,120]
[340094087,1728508261395,-546.06,0.00046849,120]
[340094088,1728508261404,-500.0,0.00046849,120]
[340094089,1728508261412,-500.0,0.00046849,120]
[340094090,1728508261421,-500.0,0.00046849,120]
[340094091,1728508261430,-500.0,0.00046849,120]
[340094092,1728508261439,-500.0,0.00046849,120]
[340094093,1728508261448,-500.0,0.00046849,120]
[340094094,1728508261458,-500.0,0.00046849,120]
[340094095,1728508261467,-546.68,0.00046849,120]
[340094096,1728508261475,-500.0999104,0.00046849,120]
[340094097,1728508261485,-500.0,0.00046849,120]
[340094098,1728508261494,-500.0,0.00046849,120]
[340094099,1728508261506,-532.14,0.00046849,120]
[340094100,1728508261515,-500.0,0.00046849,120]
[340094101,1728508261524,-500.0,0.00046849,120]
[340094102,1728508261533,-500.0,0.00046849,120]
[340094103,1728508261542,-500.0,0.00046849,2]
[340094104,1728508261552,-500.0,0.00046849,120]
[340094105,1728508261561,-581.78,0.00046849,120]
[340094106,1728508261570,-1046.81,0.00046849,120]
[340094107,1728508261579,-227.14646829,0.00046849,120]
[340094108,1728508261588,-500.0,0.00046849,120]
[340094109,1728508261597,-500.0,0.00046849,120]
[340094110,1728508261606,-500.0,0.00046849,120]
[340094111,1728508261615,-801.96,0.00046849,120]
[340094112,1728508261624,-500.0,0.00046849,120]
[340094113,1728508261634,-500.0,0.00046849,120]
[340094114,1728508261644,-500.0,0.00046849,120]
[340094115,1728508261653,-500.0,0.00046849,120]
[340094116,1728508261662,-500.0,0.00046849,120]
[340094117,1728508261671,-1270.28,0.00046849,120]
[340094118,1728508261680,-500.0,0.00046849,120]
[340094119,1728508261689,-500.0,0.00046849,120]
[340094120,1728508261698,-682.56,0.00046849,120]
[340094121,1728508261707,-719.45,0.00046849,120]
[340094122,1728508261716,-500.0,0.00046849,120]
[340094123,1728508261725,-500.0,0.00046849,120]
[340094124,1728508261734,-503.0,0.00046849,120]
[340094125,1728508261742,-500.0,0.00046849,120]
[340094126,1728508261753,-500.0,0.00046849,120]
[340094127,1728508261762,-500.0,0.00046849,120]
[340094128,1728508261771,-500.0,0.00046849,120]
[340094129,1728508261783,-206.512806,0.00046849,14]
[340094130,1728508261792,-500.0,0.00046849,120]
[340094131,1728508261803,-500.0,0.00046849,120]
[340094132,1728508261812,-206.512806,0.00046849,14]
[340094133,1728508261822,-500.0,0.00046849,120]
[340094134,1728508261832,-542.84888054,0.00046849,120]
[340094135,1728508261842,-500.0,0.00046849,120]
[340094136,1728508261852,-500.0,0.00046849,120]
[340094137,1728508261861,-2800.01,0.00046849,120]
[340094138,1728508261871,-500.0,0.00046849,120]
[340094139,1728508261880,-500.0,0.00046849,120]
[340094140,1728508261889,-500.0,0.00046849,120]
[340094141,1728508261898,-700.25,0.00046849,120]
[340094142,1728508261908,-500.0,0.00046849,120]
[340094143,1728508261918,-500.0,0.00046849,120]
[340094144,1728508261927,-176.217864,0.00046849,14]
[340094145,1728508261936,-500.0,0.00046849,120]
[340094146,1728508261945,-500.0,0.00046849,120]
[340094147,1728508261955,-247.0258517,0.00046849,120]
[340094148,1728508261964,-500.0,0.00046849,120]
[340094149,1728508261973,-500.0,0.00046849,120]
[340094150,1728508261982,-500.0,0.00046849,120]
[340094151,1728508261991,-500.0,0.00046849,120]
[340094152,1728508262002,-500.0,0.00046849,120]
[340094153,1728508262011,-500.0,0.00046849,120]
[340094154,1728508262020,-518.94,0.00046849,120]
[340094155,1728508262029,-592.26,0.00046849,120]
[340094156,1728508262038,-500.0,0.00046849,120]
[340094157,1728508262049,-614.61,0.00046849,120]
[340094158,1728508262059,-541.11907735,0.00046849,120]
[340094159,1728508262068,-500.0,0.00046849,120]
[340094160,1728508262077,-500.0,0.00046849,120]
[340094161,1728508262087,-500.0,0.00046849,120]
[340094162,1728508262096,-151.0,0.00046849,14]
[340094163,1728508262106,-209.244496,0.00046849,14]
[340094164,1728508262116,-500.0,0.00046849,120]
[340094165,1728508262126,-209.244496,0.00046849,14]
[340094166,1728508262135,-151.0,0.00046849,14]
[340094167,1728508262145,-500.0,0.00046849,120]
[340094168,1728508262154,-626.73,0.00046849,120]
[340094169,1728508262164,-500.0,0.00046849,120]
[340094170,1728508262173,-500.0,0.00046849,120]
[340094171,1728508262183,-151.0,0.00046849,14]
[340094172,1728508262193,-773.63,0.00046849,120]
[340094173,1728508262203,-500.0,0.00046849,120]
[340094174,1728508262212,-500.0,0.00046849,21]
[340094175,1728508262222,-247.96025208,0.00046849,120]
[340094176,1728508262232,-500.0,0.00046849,120]
[340094177,1728508262241,-341.81959301,0.00046849,120]
[340094178,1728508262252,-1518.3,0.00046849,120]
[340094179,1728508262261,-165.944582,0.00046849,14]
[340094180,1728508262270,-3179.75,0.00046849,120]
[340094181,1728508262280,-1079.54,0.00046849,120]
[340094182,1728508262290,-500.0,0.00046849,120]
[340094183,1728508262301,-500.0,0.00046849,2]
[340094184,1728508262313,-562.23,0.00046849,120]
[340094185,1728508262322,-500.0,0.00046849,120]
[340094186,1728508262411,-460.18954556,0.00046849,120]
[340094187,1728508262420,-500.0,0.00046849,120]
[340094188,1728508262429,-1390.62,0.00046849,120]
[340094189,1728508262438,-215.181569,0.00046849,14]
[340094190,1728508262448,-500.0,0.00046849,120]
[340094191,1728508262457,-151.0,0.00046849,14]
[340094192,1728508262466,-160.84,0.00046849,120]
[340094193,1728508262476,-511.18225217,0.00046849,120]
[340094194,1728508262485,-500.0,0.00046849,120]
[340094195,1728508262495,-500.0,0.00046849,120]
[340094196,1728508262507,-694.52,0.00046849,120]
[340094197,1728508262516,-762.63,0.00046849,120]
[340094198,1728508262526,-500.0,0.00046849,30]
[340094199,1728508262535,-500.0,0.00046849,120]
[340094200,1728508262545,-1182.6,0.00046849,120]
[340094201,1728508262554,-500.0,0.00046849,120]
[340094202,1728508262563,-998.82,0.00046849,120]
[340094203,1728508262573,-500.0,0.00046849,120]
[340094204,1728508262581,-500.0,0.00046849,120]
[340094205,1728508262591,-1757.8,0.00046849,120]
[340094206,1728508262600,-663.9,0.00046849,120]
[340094207,1728508262610,-151.0,0.00046849,14]
[340094208,1728508262619,-4247.39,0.00046849,120]
[340094209,1728508262629,-153.08336663,0.00046849,120]
[340094210,1728508262638,-598.46,0.00046849,120]
[340094211,1728508262647,-1812.36,0.00046849,120]
[340094212,1728508262656,-500.0,0.00046849,120]
[340094213,1728508262664,-811.04,0.00046849,120]
[340094214,1728508262674,-500.0,0.00046849,120]
[340094215,1728508262684,-500.0,0.00046849,120]
[340094216,1728508262693,-525.11,0.00046849,120]
[340094217,1728508262702,-17656.44,0.00046849,30]
[340094218,1728508262712,-597.29,0.00046849,120]
[340094219,1728508262721,-500.0,0.00046849,120]
[340094220,1728508262730,-743.68,0.00046849,120]
[340094221,1728508262739,-500.0,0.00046849,120]
[340094222,1728508262748,-303.24222349,0.00046849,120]
[340094223,1728508262759,-248.41499105,0.00046849,120]
[340094224,1728508262768,-527.56,0.00046849,120]
[340094225,1728508262778,-908.41,0.00046849,120]
[340094226,1728508262787,-500.0,0.00046849,120]
[340094227,1728508262797,-500.0,0.00046849,120]
[340094228,1728508262807,-1090.38,0.00046849,120]
[340094229,1728508262816,-500.0,0.00046849,120]
[340094230,1728508262826,-777.71,0.00046849,120]
[340094231,1728508262835,-500.0,0.00046849,120]
[340094232,1728508262844,-1040.09,0.00046849,120]
[340094233,1728508262854,-500.0,0.00046849,120]
[340094234,1728508262864,-500.0,0.00046849,120]
[340094235,1728508262873,-500.0,0.00046849,120]
[340094236,1728508262882,-500.0,0.00046849,120]
[340094237,1728508262892,-2019.88,0.00046849,120]
[340094238,1728508262902,-603.81,0.00046849,120]
[340094239,1728508262911,-500.0,0.00046849,120]
[340094240,1728508262921,-500.0,0.00046849,120]
[340094241,1728508262930,-840.33,0.00046849,120]
[340094242,1728508262939,-500.0,0.00046849,120]
[340094243,1728508262949,-2062.69,0.00046849,120]
[340094244,1728508262959,-199.68909607,0.00046849,120]
[340094245,1728508262969,-500.0,0.00046849,120]
[340094246,1728508262978,-1490.13,0.00046849,120]
[340094247,1728508262988,-719.175814,0.00046849,14]
[340094248,1728508262997,-648.04,0.00046849,120]
[340094249,1728508263008,-151.0,0.00046849,14]
[340094250,1728508263017,-500.0,0.00046849,120]
[340094251,1728508263027,-719.175814,0.00046849,14]
[340094252,1728508263036,-1821.04,0.00046849,120]
[340094253,1728508263046,-500.0,0.00046849,120]
[340094254,1728508263057,-2865.981398,0.00046849,14]
[340094255,1728508263067,-500.0,0.00046849,120]
[340094256,1728508263078,-500.0,0.00046849,120]
[340094257,1728508263088,-500.0,0.00046849,120]
[340094258,1728508263099,-500.0,0.00046849,120]
[340094259,1728508263109,-499.0,0.00046849,120]
[340094260,1728508263120,-2865.981398,0.00046849,14]
[340094261,1728508263130,-1109.87,0.00046849,120]
[340094262,1728508263141,-500.0,0.00046849,120]
[340094263,1728508263150,-500.0,0.00046849,120]
[340094264,1728508263160,-530.71174482,0.00046849,120]
[340094265,1728508263171,-500.0,0.00046849,120]
[340094266,1728508263180,-722.12,0.00046849,120]
[340094267,1728508263191,-250.0,0.00046849,120]
[340094268,1728508263201,-280.615505,0.00046849,14]
[340094269,1728508263212,-814.34,0.00046849,120]
[340094270,1728508263221,-1068.19,0.00046849,120]
[340094271,1728508263231,-500.0,0.00046849,120]
[340094272,1728508263240,-575.81573098,0.00046849,120]
[340094273,1728508263252,-984.53,0.00046849,120]
[340094274,1728508263262,-538.64,0.00046849,120]
[340094275,1728508263272,-500.0,0.00046849,120]
[340094276,1728508263282,-500.0,0.00046849,120]
[340094277,1728508263291,-500.0,0.00046849,120]
[340094278,1728508263302,-500.0,0.00046849,120]
[340094279,1728508263313,-251.43453664,0.00046849,120]
[340094280,1728508263323,-500.0,0.00046849,120]
[340094281,1728508263332,-1109.61,0.00046849,120]
[340094282,1728508263343,-954.46,0.00046849,120]
[340094283,1728508263353,-567.44,0.00046849,120]
[340094284,1728508263362,-4510.44,0.00046849,120]
[340094285,1728508263372,-500.0,0.00046849,120]
[340094286,1728508263383,-157.56512305,0.00046849,120]
[340094287,1728508263392,-151.0,0.00046849,14]
[340094288,1728508263403,-179.42133984,0.00046849,120]
[340094289,1728508263412,-500.0,0.00046849,120]
[340094290,1728508263422,-152.554322,0.00046849,14]
[340094291,1728508263431,-500.0,0.00046849,120]
[340094292,1728508263441,-500.0,0.00046849,120]
[340094293,1728508263451,-500.0,0.00046849,120]
[340094294,1728508263460,-22951.46430221,0.00046849,2]
[340094295,1728508263470,-183.8636305,0.00046849,120]
[340094296,1728508263479,-525.38,0.00046849,120]
[340094297,1728508263489,-151.0,0.00046849,14]
[340094298,1728508263499,-501.67,0.00046849,120]
[340094299,1728508263510,-151.0,0.00046849,14]
[340094300,1728508263520,-500.0,0.00046849,120]
[340094301,1728508263530,-781.88,0.00046849,120]
[340094302,1728508263539,-500.0,0.00046849,120]
[340094303,1728508263549,-3806.99,0.00046849,120]
[340094304,1728508263558,-500.0,0.00046849,120]
[340094305,1728508263568,-151.0,0.00046849,14]
[340094306,1728508263577,-151.0,0.00046849,14]
[340094307,1728508263587,-151.0,0.00046849,14]
[340094308,1728508263596,-422.8897216,0.00046849,2]
[340094309,1728508263605,-500.0,0.00046849,120]
[340094310,1728508263615,-151.0,0.00046849,14]
[340094311,1728508263624,-500.0,0.00046849,120]
[340094312,1728508263633,-500.0,0.00046849,120]
[340094313,1728508263642,-621.52197127,0.00046849,120]
[340094314,1728508263652,-500.0,0.00046849,120]
[340094315,1728508263661,-889.92,0.00046849,120]
[340094316,1728508263671,-500.0,0.00046849,120]
[340094317,1728508263680,-500.0,0.00046849,120]
[340094318,1728508263689,-500.0,0.00046849,120]
[340094319,1728508263699,-500.0,0.00046849,120]
[340094320,1728508263709,-500.0,0.00046849,120]
[340094321,1728508263718,-500.0,0.00046849,120]
[340094322,1728508263728,-481.36519632,0.00046849,120]
[340094323,1728508263737,-500.0,0.00046849,120]
[340094324,1728508263747,-500.0,0.00046882,120]
[340094325,1728508263841,-811.0,0.00046885,2]
[340094326,1728508263851,-559.0,0.00046885,2]
[340094327,1728508263861,-916.641,0.00046885,2]
[340094328,1728508263871,-494.686,0.00046885,2]
[340094329,1728508263880,-1028.238,0.00046885,2]
[340094330,1728508263890,-888.69,0.00046887,2]
[340094331,1728508263900,-808.0,0.00046887,2]
[340094332,1728508263909,-151.0,0.00046936,14]
[340094333,1728508263918,-234.269445,0.00046936,14]
[340094334,1728508263927,-266.352234,0.00046936,14]
[340094335,1728508263938,-151.0,0.00046936,7]
[340094336,1728508263947,-151.0,0.00046936,7]
[340094337,1728508263956,-154.714368,0.00046936,14]
[340094338,1728508263966,-154.714368,0.00046936,14]
[340094339,1728508263975,-150.0,0.00046941,30]
[340094340,1728508263985,-161.61,0.00046967,2]
[340094341,1728508263995,-5879.0,0.0004699,2]
[340094342,1728508264006,-1149.0,0.0004699,2]
[340094343,1728508264015,-150.0,0.0004699,2]
[340094344,1728508264025,-13519.0,0.0004699,2]
[340094345,1728508264035,-50000.0,0.00047,47]
[340094346,1728508264045,-50000.0,0.00047,57]
[340094347,1728508264055,-50000.0,0.00047,37]
[340094348,1728508264064,-50000.0,0.00047,47]
[340094349,1728508264074,-350.0,0.00047,120]
[340094350,1728508264083,-20000.0,0.00047,120]
[340094351,1728508264093,-50000.0,0.00047,120]
[340094352,1728508264103,-1031.13665368,0.00047,60]
[340094353,1728508264113,-1298.0,0.00047,2]
[340094354,1728508264123,-449.0,0.00047,2]
[340094355,1728508264133,-151.0,0.00047,14]
[340094356,1728508264143,-626.0,0.00047,2]
[340094357,1728508264152,-151.0,0.00047,14]
[340094358,1728508264162,-151.0,0.00047,14]
[340094359,1728508264172,-151.0,0.00047,14]
[340094360,1728508264182,-151.0,0.00047,14]
[340094361,1728508264192,-8138.4046013,0.00047091,2]
[340094362,1728508264201,-103399.6160871,0.00047091,2]